fUST/lending_fUST_20240814
["ID","MTS","AMOUNT","RATE_DAILY","PERIOD"]
[334882583,1723626652833,-500.0,0.00014246,2]
[334882585,1723626652842,-500.0,0.00014246,2]
[334882587,1723626652852,-500.0,0.00014246,2]
[334882589,1723626652862,-500.0,0.00014246,2]
[334882591,1723626652871,-500.0,0.00014246,2]
[334882593,1723626652881,-500.0,0.00014246,2]
[334882595,1723626652891,-500.0,0.00014246,2]
[334882597,1723626652900,-278.97063482,0.00014246,2]
[334882599,1723626652910,-1569.85,0.00014246,2]
[334882601,1723626652919,-500.0,0.00014246,2]
[334882603,1723626652932,-500.0,0.00014246,2]
[334882605,1723626652942,-500.0,0.00014246,2]
[334882607,1723626652952,-500.0,0.00014246,2]
[334882609,1723626652963,-500.0,0.00014246,2]
[334882611,1723626652975,-508.06665224,0.00014246,2]
[334882613,1723626652986,-500.0,0.00014246,2]
[334882615,1723626652997,-500.0,0.00014246,2]
[334882617,1723626653008,-500.0,0.00014246,2]
[334882620,1723626653020,-500.0,0.00014246,2]
[334882622,1723626653031,-274.217258,0.00014246,2]
[334882624,1723626653042,-151.0,0.00014246,2]
[334882626,1723626653052,-500.0,0.00014246,2]
[334882628,1723626653062,-500.0,0.00014246,2]
[334882630,1723626653074,-500.0,0.00014246,2]
[334882632,1723626653084,-500.0,0.00014246,2]
[334882634,1723626653095,-507.95929702,0.00014246,2]
[334882636,1723626653106,-500.0,0.00014246,2]
[334882638,1723626653115,-500.0,0.00014246,2]
[334882640,1723626653125,-509.77348681,0.00014246,2]
[334882642,1723626653135,-500.0,0.00014246,2]
[334882644,1723626653144,-700.2,0.00014246,2]
[334882646,1723626653153,-500.0,0.00014246,2]
[334882648,1723626653163,-500.0,0.00014246,2]
[334882650,1723626653172,-500.0,0.00014246,2]
[334882651,1723626653189,-500.0,0.00014246,2]
[334882653,1723626653198,-505.15140336,0.00014246,2]
[334882656,1723626653209,-500.0,0.00014246,2]
[334882657,1723626653218,-675.46,0.00014246,2]
[334882659,1723626653228,-500.0,0.00014246,2]
[334882661,1723626653237,-506.179735,0.00014246,2]
[334882663,1723626653247,-500.0,0.00014246,2]
[334882665,1723626653257,-500.0,0.00014246,2]
[334882667,1723626653267,-506.41919419,0.00014246,2]
[334882669,1723626653279,-500.0,0.00014246,2]
[334882672,1723626653291,-500.0,0.00014246,2]
[334882674,1723626653301,-329.58930782,0.00014246,2]
[334882676,1723626653313,-824.21,0.00014246,2]
[334882678,1723626653323,-500.0,0.00014246,2]
[334882680,1723626653334,-500.0,0.00014246,2]
[334882682,1723626653343,-500.0,0.00014246,2]
[334882684,1723626653355,-500.0,0.00014246,2]
[334882686,1723626653365,-500.0,0.00014246,2]
[334882688,1723626653376,-500.0,0.00014246,2]
[334882690,1723626653389,-505.86186644,0.00014246,2]
[334882692,1723626653398,-1149.1,0.00014246,2]
[334882694,1723626653408,-503.02974776,0.00014246,2]
[334882696,1723626653423,-500.0,0.00014246,2]
[334882698,1723626653435,-500.0,0.00014246,2]
[334882700,1723626653445,-1040.93,0.00014246,2]
[334882702,1723626653455,-505.04814957,0.00014246,2]
[334882704,1723626653466,-500.0,0.00014246,2]
[334882706,1723626653475,-500.0,0.00014246,2]
[334882708,1723626653486,-500.0,0.00014246,2]
[334882710,1723626653497,-500.0,0.00014246,2]
[334882712,1723626653507,-500.0,0.00014246,2]
[334882714,1723626653517,-500.0,0.00014246,2]
[334882716,1723626653526,-500.0,0.00014246,2]
[334882718,1723626653537,-500.0,0.00014246,2]
[334882720,1723626653548,-511.64241606,0.00014246,2]
[334882722,1723626653560,-568.29,0.00014246,2]
[334882724,1723626653570,-500.0,0.00014246,2]
[334882726,1723626653582,-525.48094796,0.00014246,2]
[334882728,1723626653592,-506.65142201,0.00014246,2]
[334882730,1723626653603,-504.35321213,0.00014246,2]
[334882732,1723626653614,-500.0,0.00014246,2]
[334882734,1723626653624,-242.207258,0.00014246,2]
[334882736,1723626653635,-623.16,0.00014246,2]
[334882738,1723626653645,-250.53568514,0.00014246,2]
[334882740,1723626653656,-242.207258,0.00014246,2]
[334882742,1723626653667,-500.0,0.00014246,2]
[334882745,1723626653689,-500.0,0.00014246,2]
[334882747,1723626653699,-276.281811,0.00014246,2]
[334882749,1723626653709,-500.0,0.00014246,2]
[334882751,1723626653719,-276.281811,0.00014246,2]
[334882753,1723626653731,-673.6,0.00014246,2]
[334882755,1723626653742,-639.99,0.00014246,2]
[334882757,1723626653753,-500.0,0.00014246,2]
[334882770,1723626653878,-500.0,0.00014246,2]
[334882772,1723626653889,-500.0,0.00014246,2]
[334882774,1723626653900,-987.96,0.00014246,2]
[334882776,1723626653910,-500.0,0.00014246,2]
[334882778,1723626653919,-490.37589592,0.00014246,2]
[334882779,1723626653932,-509.370741,0.00014246,2]
[334882780,1723626653945,-500.0,0.00014246,2]
[334882781,1723626653956,-500.0,0.00014246,2]
[334882782,1723626653972,-512.20070473,0.00014246,2]
[334882783,1723626653982,-500.0,0.00014246,2]
[334882784,1723626653993,-500.0,0.00014246,2]
[334882785,1723626654002,-508.40384045,0.00014246,2]
[334882786,1723626654011,-672.95,0.00014246,2]
[334882787,1723626654021,-500.0,0.00014246,2]
[334882788,1723626654030,-500.0,0.00014246,2]
[334882789,1723626654041,-500.0,0.00014246,2]
[334882790,1723626654050,-803.27,0.00014246,2]
[334882791,1723626654061,-503.41857504,0.00014246,2]
[334882792,1723626654071,-553.37,0.00014246,2]
[334882793,1723626654082,-720.6,0.00014246,2]
[334882794,1723626654092,-1840.02,0.00014246,2]
[334882795,1723626654103,-500.0,0.00014246,2]
[334882796,1723626654113,-500.0,0.00014246,2]
[334882797,1723626654124,-500.0,0.00014246,2]
[334882798,1723626654135,-500.0,0.00014246,2]
[334882799,1723626654144,-500.0,0.00014246,2]
[334882801,1723626654154,-2032.76,0.00014246,2]
[334882803,1723626654164,-500.0,0.00014246,2]
[334882805,1723626654173,-552.54,0.00014246,2]
[334882807,1723626654183,-500.0,0.00014246,2]
[334882810,1723626654194,-500.0,0.00014246,2]
[334882812,1723626654205,-657.65,0.00014246,2]
[334882814,1723626654215,-873.31,0.00014246,2]
[334882816,1723626654226,-404.611122,0.00014246,2]
[334882818,1723626654238,-152.646927,0.00014246,2]
[334882820,1723626654249,-13404.77,0.00014246,2]
[334882822,1723626654258,-404.611122,0.00014246,2]
[334882824,1723626654269,-151.0,0.00014246,2]
[334882826,1723626654278,-500.0,0.00014246,2]
[334882828,1723626654288,-500.0,0.00014246,2]
[334882830,1723626654298,-151.0,0.00014246,2]
[334882832,1723626654307,-500.0,0.00014246,2]
[334882834,1723626654317,-506.4223629,0.00014246,2]
[334882836,1723626654326,-510.38446411,0.00014246,2]
[334882838,1723626654336,-2275.453086,0.00014246,2]
[334882840,1723626654345,-741.21,0.00014246,2]
[334882842,1723626654354,-500.0,0.00014246,2]
[334882844,1723626654364,-2275.453086,0.00014246,2]
[334882846,1723626654373,-500.0,0.00014246,2]
[334882848,1723626654384,-500.0,0.00014246,2]
[334882850,1723626654395,-503.18841935,0.00014246,2]
[334882853,1723626654407,-167.98042,0.00014246,2]
[334882855,1723626654422,-873.89,0.00014246,2]
[334882857,1723626654435,-703.76,0.00014246,2]
[334882859,1723626654446,-500.0,0.00014246,2]
[334882861,1723626654456,-151.0,0.00014246,2]
[334882863,1723626654467,-151.0,0.00014246,2]
[334882865,1723626654478,-950.07,0.00014246,2]
[334882868,1723626654488,-500.0,0.00014246,2]
[334882870,1723626654501,-500.0,0.00014246,2]
[334882872,1723626654513,-151.0,0.00014246,2]
[334882874,1723626654525,-988.37,0.00014246,2]
[334882876,1723626654537,-500.0,0.00014246,2]
[334882879,1723626654548,-4220.98,0.00014246,2]
[334882881,1723626654558,-500.0,0.00014246,2]
[334882883,1723626654567,-500.0,0.00014246,2]
[334882885,1723626654576,-1416.324261,0.00014246,2]
[334882887,1723626654587,-506.80680366,0.00014246,2]
[334882889,1723626654598,-500.0,0.00014246,2]
[334882891,1723626654609,-1416.324261,0.00014246,2]
[334882893,1723626654620,-500.0,0.00014246,2]
[334882895,1723626654630,-938.85,0.00014246,2]
[334882897,1723626654639,-508.39238803,0.00014246,2]
[334882899,1723626654650,-500.0,0.00014246,2]
[334882901,1723626654660,-2942.22,0.00014246,2]
[334882903,1723626654669,-500.0,0.00014246,2]
[334882905,1723626654680,-500.0,0.00014246,2]
[334882907,1723626654689,-500.0,0.00014246,2]
[334882909,1723626654700,-500.0,0.00014246,2]
[334882911,1723626654710,-500.0,0.00014246,2]
[334882913,1723626654719,-505.49730584,0.00014246,2]
[334882915,1723626654729,-747.56,0.00014246,2]
[334882917,1723626654738,-4778.59,0.00014246,2]
[334882919,1723626654748,-500.0,0.00014246,2]
[334882921,1723626654757,-500.0,0.00014246,2]
[334882923,1723626654767,-500.0,0.00014246,2]
[334882925,1723626654779,-597.87,0.00014246,2]
[334882927,1723626654790,-509.69022598,0.00014246,2]
[334882929,1723626654800,-506.03447275,0.00014246,2]
[334882931,1723626654810,-1325.3,0.00014246,2]
[334882933,1723626654819,-622.08267186,0.00014246,2]
[334882935,1723626654829,-519.30900387,0.00014246,2]
[334882937,1723626654839,-249.744678,0.00014247,2]
[334882939,1723626654848,-500.255322,0.00014247,2]
[334882941,1723626654858,-777.52,0.000143,2]
[334882943,1723626654867,-602.0,0.000143,2]
[334882945,1723626654877,-160.0,0.0001443,2]
[334882947,1723626654887,-209.2010022,0.0001452,2]
[334882949,1723626654896,-500.0,0.0001452,2]
[334882951,1723626654905,-509.58904527,0.0001452,2]
[334882953,1723626654915,-502.57630284,0.0001452,2]
[334882955,1723626654925,-507.14496494,0.0001452,2]
[334882957,1723626654935,-500.0,0.0001452,2]
[334882959,1723626654944,-518.16872683,0.0001452,2]
[334882961,1723626654954,-500.0,0.0001452,2]
[334882963,1723626654963,-505.5,0.0001452,2]
[334882965,1723626654973,-500.0,0.0001452,2]
[334882967,1723626654983,-504.87622052,0.0001452,2]
[334882969,1723626654993,-500.0,0.0001452,2]
[334882971,1723626655002,-502.04033354,0.0001452,2]
[334882973,1723626655012,-500.0,0.0001452,2]
[334882975,1723626655021,-546.51468707,0.0001452,2]
[334882977,1723626655031,-504.39364196,0.0001452,2]
[334882979,1723626655040,-202.02022492,0.0001452,2]
[334882981,1723626655051,-500.0,0.0001452,2]
[334882983,1723626655060,-500.0,0.0001452,2]
[334882985,1723626655070,-500.0,0.0001452,2]
[334882987,1723626655079,-500.0,0.0001452,2]
[334882989,1723626655089,-500.0,0.0001452,2]
[334882991,1723626655098,-500.0,0.0001452,2]
[334882993,1723626655108,-500.0,0.0001452,2]
[334882995,1723626655118,-506.29888616,0.0001452,2]
[334882997,1723626655127,-507.15467518,0.0001452,2]
[334882999,1723626655138,-703.43,0.0001452,2]
[334883001,1723626655148,-500.0,0.0001452,2]
[334883003,1723626655157,-500.0,0.0001452,2]
[334883005,1723626655167,-500.0,0.0001452,2]
[334883007,1723626655176,-500.0,0.0001452,2]
[334883009,1723626655186,-515.13,0.0001452,2]
[334883011,1723626655195,-500.0,0.0001452,2]
[334883013,1723626655205,-372.16752522,0.0001452,2]
[334883015,1723626655215,-507.29039173,0.0001452,2]
[334883017,1723626655224,-509.78776944,0.0001452,2]
[334883019,1723626655234,-500.0,0.0001452,2]
[334883021,1723626655243,-594.72,0.0001452,2]
[334883023,1723626655253,-500.0,0.0001452,2]
[334883024,1723626655262,-444.59818979,0.0001452,2]
[334883026,1723626655271,-151.0,0.0001452,2]
[334883028,1723626655281,-506.90750939,0.0001452,2]
[334883030,1723626655290,-511.21376885,0.0001452,2]
[334883032,1723626655299,-500.0,0.0001452,2]
[334883034,1723626655308,-500.0,0.0001452,2]
[334883036,1723626655318,-500.0,0.0001452,2]
[334883038,1723626655328,-151.0,0.0001452,2]
[334883040,1723626655338,-151.0,0.0001452,2]
[334883042,1723626655347,-516.87368999,0.0001452,2]
[334883044,1723626655357,-500.0,0.0001452,2]
[334883047,1723626655366,-500.0,0.0001452,2]
[334883049,1723626655377,-151.0,0.0001452,2]
[334883051,1723626655386,-759.96,0.0001452,2]
[334883052,1723626655396,-510.56873589,0.0001452,2]
[334883054,1723626655405,-151.0,0.0001452,2]
[334883056,1723626655419,-500.0,0.0001452,2]
[334883059,1723626655432,-500.0,0.0001452,2]
[334883061,1723626655443,-151.0,0.0001452,2]
[334883063,1723626655454,-504.59089689,0.0001452,2]
[334883065,1723626655465,-500.0,0.0001452,2]
[334883068,1723626655477,-506.34945328,0.0001452,2]
[334883070,1723626655490,-501.71579286,0.0001452,2]
[334883072,1723626655500,-500.0,0.0001452,2]
[334883074,1723626655510,-500.0,0.0001452,2]
[334883076,1723626655520,-151.0,0.0001452,2]
[334883078,1723626655532,-151.0,0.0001452,2]
[334883080,1723626655543,-151.0,0.0001452,2]
[334883083,1723626655555,-499.99715957,0.0001452,2]
[334883085,1723626655567,-500.0,0.0001452,2]
[334883087,1723626655578,-500.0,0.0001452,2]
[334883089,1723626655589,-559.11588219,0.0001452,2]
[334883091,1723626655601,-500.0,0.0001452,2]
[334883093,1723626655611,-500.0,0.0001452,2]
[334883095,1723626655620,-507.99856894,0.0001452,2]
[334883097,1723626655630,-500.0,0.0001452,2]
[334883100,1723626655640,-515.68965807,0.0001452,2]
[334883101,1723626655649,-151.0,0.0001452,2]
[334883103,1723626655660,-1783.97391,0.0001452,2]
[334883106,1723626655669,-1783.97391,0.0001452,2]
[334883107,1723626655680,-506.98584995,0.0001452,2]
[334883109,1723626655690,-500.0,0.0001452,2]
[334883112,1723626655700,-500.0,0.0001452,2]
[334883114,1723626655710,-500.0,0.0001452,2]
[334883116,1723626655720,-503.78076457,0.0001452,2]
[334883118,1723626655729,-500.0,0.0001452,2]
[334883120,1723626655740,-1569.85,0.0001452,2]
[334883122,1723626655749,-508.92033763,0.0001452,2]
[334883124,1723626655758,-500.0,0.0001452,2]
[334883126,1723626655768,-590.62330183,0.0001452,2]
[334883128,1723626655778,-500.0,0.0001452,2]
[334883130,1723626655787,-500.0,0.0001452,2]
[334883132,1723626655797,-500.0,0.0001452,2]
[334883134,1723626655806,-560.63895365,0.0001452,2]
[334883136,1723626655816,-508.21369679,0.0001452,2]
[334883138,1723626655825,-500.0,0.0001452,2]
[334883140,1723626655835,-500.0,0.0001452,2]
[334883142,1723626655845,-500.0,0.0001452,2]
[334883144,1723626655855,-500.0,0.0001452,2]
[334883146,1723626655864,-625.85146069,0.0001452,2]
[334883148,1723626655875,-500.0,0.0001452,2]
[334883150,1723626655884,-394.63625334,0.0001452,2]
[334883152,1723626655894,-342.28150176,0.0001452,2]
[334883154,1723626655903,-700.2,0.0001452,2]
[334883156,1723626655912,-421.80783216,0.0001452,2]
[334883158,1723626655922,-500.0,0.0001452,2]
[334883160,1723626655934,-500.0,0.0001452,2]
[334883162,1723626655943,-632.2404493,0.0001452,2]
[334883164,1723626655953,-675.46,0.0001452,2]
[334883166,1723626655963,-527.1749317,0.0001452,2]
[334883168,1723626655974,-518.70054048,0.0001452,2]
[334883170,1723626655984,-500.0,0.0001452,2]
[334883182,1723626656085,-233.12878964,0.0001452,2]
[334883184,1723626656095,-824.21,0.0001452,2]
[334883187,1723626656108,-500.0,0.0001452,2]
[334883189,1723626656118,-507.01120118,0.0001452,2]
[334883191,1723626656128,-500.0,0.0001452,2]
[334883193,1723626656139,-500.0,0.0001452,2]
[334883196,1723626656152,-1149.1,0.0001452,2]
[334883198,1723626656163,-507.05018205,0.0001452,2]
[334883200,1723626656175,-507.78093284,0.0001452,2]
[334883202,1723626656185,-1040.93,0.0001452,2]
[334883204,1723626656196,-500.0,0.0001452,2]
[334883206,1723626656207,-151.0,0.0001452,2]
[334883208,1723626656218,-478.66878333,0.0001452,2]
[334883210,1723626656228,-500.0,0.0001452,2]
[334883212,1723626656239,-500.0,0.0001452,2]
[334883213,1723626656250,-500.0,0.0001452,2]
[334883215,1723626656259,-550.01309155,0.0001452,2]
[334883217,1723626656270,-500.0,0.0001452,2]
[334883219,1723626656280,-507.92007009,0.0001452,2]
[334883221,1723626656292,-568.29,0.0001452,2]
[334883223,1723626656303,-500.0,0.0001452,2]
[334883225,1723626656316,-716.309019,0.0001452,2]
[334883227,1723626656326,-716.309019,0.0001452,2]
[334883229,1723626656336,-500.0,0.0001452,2]
[334883230,1723626656345,-623.16,0.0001452,2]
[334883232,1723626656355,-500.0,0.0001452,2]
[334883234,1723626656366,-500.0,0.0001452,2]
[334883236,1723626656376,-507.61809071,0.0001452,2]
[334883237,1723626656385,-673.6,0.0001452,2]
[334883239,1723626656395,-151.0,0.0001452,2]
[334883241,1723626656404,-617.769582,0.0001452,2]
[334883243,1723626656416,-617.769582,0.0001452,2]
[334883244,1723626656427,-639.99,0.0001452,2]
[334883246,1723626656436,-500.0,0.0001452,2]
[334883248,1723626656446,-151.0,0.0001452,2]
[334883250,1723626656456,-449.188265,0.0001452,2]
[334883252,1723626656466,-500.0,0.0001452,2]
[334883253,1723626656476,-511.14735694,0.0001452,2]
[334883255,1723626656485,-151.0,0.0001452,2]
[334883257,1723626656497,-449.188265,0.0001452,2]
[334883259,1723626656507,-987.96,0.0001452,2]
[334883261,1723626656518,-500.0,0.0001452,2]
[334883263,1723626656529,-500.0,0.0001452,2]
[334883265,1723626656539,-500.0,0.0001452,2]
[334883267,1723626656551,-507.00853199,0.0001452,2]
[334883269,1723626656561,-508.18614126,0.0001452,2]
[334883271,1723626656574,-672.95,0.0001452,2]
[334883273,1723626656586,-151.0,0.0001452,2]
[334883275,1723626656598,-512.51508889,0.0001452,2]
[334883277,1723626656607,-500.0,0.0001452,2]
[334883278,1723626656616,-500.0,0.0001452,2]
[334883280,1723626656626,-803.27,0.0001452,2]
[334883282,1723626656636,-153.876601,0.0001452,2]
[334883284,1723626656646,-2137.024966,0.0001452,2]
[334883286,1723626656655,-553.37,0.0001452,2]
[334883288,1723626656665,-2137.024966,0.0001452,2]
[334883290,1723626656678,-720.6,0.0001452,2]
[334883292,1723626656687,-289.758776,0.0001452,2]
[334883293,1723626656696,-1840.02,0.0001452,2]
[334883295,1723626656705,-500.0,0.0001452,2]
[334883297,1723626656715,-500.0,0.0001452,2]
[334883299,1723626656726,-289.758776,0.0001452,2]
[334883301,1723626656738,-500.0,0.0001452,2]
[334883303,1723626656748,-151.0,0.0001452,2]
[334883305,1723626656759,-500.0,0.0001452,2]
[334883306,1723626656769,-507.81619924,0.0001452,2]
[334883308,1723626656780,-1518.615014,0.0001452,2]
[334883310,1723626656791,-2032.76,0.0001452,2]
[334883312,1723626656802,-500.0,0.0001452,2]
[334883314,1723626656812,-552.54,0.0001452,2]
[334883316,1723626656823,-1518.615014,0.0001452,2]
[334883318,1723626656833,-521.87205657,0.0001452,2]
[334883320,1723626656844,-657.65,0.0001452,2]
[334883322,1723626656855,-300.772827,0.0001452,2]
[334883324,1723626656866,-300.772827,0.0001452,2]
[334883326,1723626656877,-873.31,0.0001452,2]
[334883328,1723626656887,-13404.77,0.0001452,2]
[334883330,1723626656896,-500.0,0.0001452,2]
[334883332,1723626656906,-507.86032419,0.0001452,2]
[334883334,1723626656915,-741.21,0.0001452,2]
[334883335,1723626656925,-356.82986889,0.0001452,2]
[334883337,1723626656937,-500.0,0.0001452,2]
[334883339,1723626656946,-500.0,0.0001452,2]
[334883341,1723626656956,-873.89,0.0001452,2]
[334883343,1723626656966,-703.76,0.0001452,2]
[334883345,1723626656975,-505.60398639,0.0001452,2]
[334883347,1723626656984,-950.07,0.0001452,2]
[334883348,1723626656993,-507.2447329,0.0001452,2]
[334883350,1723626657003,-500.0,0.0001452,2]
[334883352,1723626657013,-988.37,0.0001452,2]
[334883354,1723626657023,-507.57414462,0.0001452,2]
[334883356,1723626657032,-4220.98,0.0001452,2]
[334883358,1723626657042,-500.0,0.0001452,2]
[334883360,1723626657051,-500.0,0.0001452,2]
[334883362,1723626657060,-336.64856421,0.0001452,2]
[334883363,1723626657070,-938.85,0.0001452,2]
[334883365,1723626657079,-500.0,0.0001452,2]
[334883367,1723626657088,-2942.22,0.0001452,2]
[334883369,1723626657098,-507.50188352,0.0001452,2]
[334883371,1723626657109,-500.0,0.0001452,2]
[334883373,1723626657118,-500.0,0.0001452,2]
[334883375,1723626657127,-500.0,0.0001452,2]
[334883376,1723626657136,-500.0,0.0001452,2]
[334883378,1723626657146,-747.56,0.0001452,2]
[334883380,1723626657155,-4778.59,0.0001452,2]
[334883382,1723626657165,-578.20529404,0.0001452,2]
[334883384,1723626657174,-500.0,0.0001452,2]
[334883386,1723626657185,-500.0,0.0001452,2]
[334883387,1723626657194,-597.87,0.0001452,2]
[334883389,1723626657203,-186.748546,0.0001452,2]
[334883391,1723626657212,-1325.3,0.0001452,2]
[334883393,1723626657221,-500.0,0.00014616,7]
[334883395,1723626657230,-500.0,0.00014616,7]
[334883397,1723626657240,-500.0,0.00014616,7]
[334883399,1723626657249,-500.0,0.00014616,7]
[334883400,1723626657258,-500.0,0.00014616,7]
[334883402,1723626657267,-500.0,0.00014616,7]
[334883404,1723626657277,-500.0,0.00014616,7]
[334883406,1723626657287,-500.0,0.00014616,7]
[334883408,1723626657296,-500.0,0.00014616,7]
[334883410,1723626657307,-500.0,0.00014616,7]
[334883411,1723626657316,-500.0,0.00014616,7]
[334883413,1723626657326,-500.0,0.00014616,7]
[334883415,1723626657335,-500.0,0.00014616,7]
[334883417,1723626657344,-500.0,0.00014616,7]
[334883419,1723626657354,-500.0,0.00014616,7]
[334883421,1723626657364,-445.19,0.00014616,7]
[334883422,1723626657373,-500.0,0.00014616,7]
[334883424,1723626657382,-500.0,0.00014616,7]
[334883426,1723626657392,-507.77198338,0.00014794,2]
[334883428,1723626657402,-500.0,0.00014794,2]
[334883430,1723626657415,-512.5771374,0.00014794,2]
[334883432,1723626657427,-500.0,0.00014794,2]
[334883434,1723626657437,-500.0,0.00014794,2]
[334883435,1723626657447,-500.0,0.00014794,2]
[334883437,1723626657458,-151.0,0.00014794,2]
[334883439,1723626657467,-508.42738621,0.00014794,2]
[334883441,1723626657477,-500.0,0.00014794,2]
[334883443,1723626657487,-500.0,0.00014794,2]
[334883444,1723626657498,-501.4902127,0.00014794,2]
[334883446,1723626657508,-511.96731237,0.00014794,2]
[334883448,1723626657517,-500.0,0.00014794,2]
[334883450,1723626657527,-500.0,0.00014794,2]
[334883452,1723626657536,-703.43,0.00014794,2]
[334883454,1723626657545,-229.326224,0.00014794,2]
[334883456,1723626657555,-229.326224,0.00014794,2]
[334883457,1723626657565,-638.56117203,0.00014794,2]
[334883459,1723626657575,-500.0,0.00014794,2]
[334883461,1723626657585,-515.13,0.00014794,2]
[334883463,1723626657595,-501.51844714,0.00014794,2]
[334883465,1723626657604,-500.0,0.00014794,2]
[334883467,1723626657613,-594.72,0.00014794,2]
[334883468,1723626657622,-500.0,0.00014794,2]
[334883470,1723626657631,-326.31207589,0.00014794,2]
[334883472,1723626657641,-500.0,0.00014794,2]
[334883474,1723626657650,-500.0,0.00014794,2]
[334883476,1723626657660,-507.65910831,0.00014794,2]
[334883478,1723626657670,-504.52355446,0.00014794,2]
[334883479,1723626657680,-759.96,0.00014794,2]
[334883481,1723626657689,-500.0,0.00014794,2]
[334883483,1723626657698,-500.0,0.00014794,2]
[334883485,1723626657708,-508.20831117,0.00014794,2]
[334883487,1723626657717,-509.89254846,0.00014794,2]
[334883489,1723626657726,-500.0,0.00014794,2]
[334883490,1723626657736,-500.0,0.00014794,2]
[334883492,1723626657745,-500.0,0.00014794,2]
[334883494,1723626657755,-500.0,0.00014794,2]
[334883496,1723626657764,-500.0,0.00014794,2]
[334883498,1723626657773,-397.10527567,0.00014794,2]
[334883500,1723626657782,-500.0,0.00014794,2]
[334883501,1723626657794,-500.0,0.00014794,2]
[334883503,1723626657805,-500.0,0.00014794,2]
[334883505,1723626657815,-1569.85,0.00014794,2]
[334883507,1723626657825,-500.0,0.00014794,2]
[334883509,1723626657835,-500.0,0.00014794,2]
[334883511,1723626657844,-500.0,0.00014794,2]
[334883513,1723626657854,-500.0,0.00014794,2]
[334883515,1723626657864,-500.0,0.00014794,2]
[334883517,1723626657873,-500.0,0.00014794,2]
[334883518,1723626657883,-414.84880067,0.00014794,2]
[334883520,1723626657892,-700.2,0.00014794,2]
[334883522,1723626657901,-500.0,0.00014794,2]
[334883524,1723626657910,-500.0,0.00014794,2]
[334883526,1723626657923,-675.46,0.00014794,2]
[334883528,1723626657934,-824.21,0.00014794,2]
[334883530,1723626657944,-500.0,0.00014794,2]
[334883532,1723626657954,-509.09467316,0.00014794,2]
[334883534,1723626657965,-500.0,0.00014794,2]
[334883536,1723626657975,-1149.1,0.00014794,2]
[334883538,1723626657986,-1040.93,0.00014794,2]
[334883540,1723626657997,-500.0,0.00014794,2]
[334883549,1723626658091,-500.0,0.00014794,2]
[334883551,1723626658102,-500.0,0.00014794,2]
[334883553,1723626658113,-510.51254175,0.00014794,2]
[334883555,1723626658123,-500.0,0.00014794,2]
[334883557,1723626658133,-568.29,0.00014794,2]
[334883559,1723626658142,-500.0,0.00014794,2]
[334883561,1723626658151,-500.0,0.00014794,2]
[334883562,1723626658161,-623.16,0.00014794,2]
[334883564,1723626658170,-500.0,0.00014794,2]
[334883566,1723626658181,-209.14396083,0.00014794,2]
[334883568,1723626658190,-673.6,0.00014794,2]
[334883570,1723626658200,-639.99,0.00014794,2]
[334883572,1723626658209,-500.0,0.00014794,2]
[334883574,1723626658218,-500.0,0.00014794,2]